bitfinex-derivatives/quotes_BTCF0:USTF0_20251120
["timestamp","ask_amount","ask_price","bid_price","bid_amount"]
[1763666477198,0.00017233,86765.0,86756.0,0.3608]
[1763666477410,0.00219803,86764.0,86756.0,0.3608]
[1763666477613,0.00219803,86764.0,86761.0,0.0115396]
[1763666478011,0.00219803,86764.0,86763.0,0.3608]
[1763666478211,0.00219803,86764.0,86756.0,0.3608]
[1763666478411,0.00219803,86764.0,86762.0,0.0115395]
[1763666479010,0.00219803,86764.0,86763.0,0.3608]
[1763666479321,0.00017233,86765.0,86763.0,0.3723395]
[1763666479612,0.37386441,86783.0,86763.0,0.3608]
[1763666479805,0.36299803,86783.0,86772.0,0.3608]
[1763666480202,0.00219803,86783.0,86777.0,0.0115375]
[1763666480614,0.00219803,86783.0,86772.0,0.3608]
[1763666480817,0.10625044,86783.0,86772.0,0.3608]
[1763666481006,0.00219803,86783.0,86772.0,0.3608]
[1763666481204,0.01577999,86783.0,86772.0,0.001]
[1763666481408,0.01577999,86783.0,86772.0,0.3618]
[1763666481611,0.01577999,86783.0,86772.0,0.3608]
[1763666481816,0.00219803,86783.0,86772.0,0.3618]
[1763666482226,0.00017262,86789.0,86772.0,0.3608]
[1763666482417,0.00017262,86789.0,86788.0,0.3723361]
[1763666482614,0.3608,86803.0,86792.0,0.0115355]
[1763666482810,0.3608,86803.0,86800.0,0.0115344]
[1763666482811,0.36299803,86803.0,86800.0,0.0115344]
[1763666483014,0.05892,86802.0,86796.0,0.3608]
[1763666483219,0.00219803,86801.0,86796.0,0.3608]
[1763666483411,0.19947,86797.0,86793.0,1.5]
[1763666483614,0.00219803,86794.0,86793.0,1.5]
[1763666484109,0.00219803,86794.0,86786.0,0.00017286]
[1763666484820,0.00319803,86794.0,86786.0,0.00017286]
[1763666485023,0.09351,86763.0,86753.0,0.3608]
[1763666485211,0.00219803,86763.0,86753.0,0.3608]
[1763666485412,0.00219803,86763.0,86754.0,1.4999]
[1763666485615,0.00219803,86763.0,86743.0,0.11264]
[1763666485616,0.3608,86757.0,86743.0,0.11264]
[1763666485816,0.00219803,86744.0,86743.0,0.21233]
[1763666486024,0.00219803,86744.0,86743.0,1.71223]
[1763666486225,0.00219803,86744.0,86743.0,1.7237721]
[1763666486417,0.00219803,86744.0,86743.0,1.71213]
[1763666486619,0.00219803,86744.0,86743.0,0.11244]
[1763666486821,0.00219803,86744.0,86735.0,0.00017286]
[1763666487019,0.41972,86742.0,86735.0,0.00017286]
[1763666487230,0.00219803,86736.0,86735.0,0.00017286]
[1763666487427,0.00219803,86736.0,86735.0,0.20659286]
[1763666487629,0.00219803,86736.0,86735.0,0.00017286]
[1763666487927,0.20166803,86736.0,86735.0,0.00017286]
[1763666488132,0.20166803,86736.0,86735.0,0.00117286]
[1763666489423,0.20166803,86736.0,86735.0,0.10086286]
[1763666489424,0.00219803,86736.0,86735.0,0.10086286]
[1763666489630,0.00219803,86736.0,86735.0,0.20759286]
[1763666490042,0.3608,86753.0,86738.0,0.20642]
[1763666490230,0.3608,86753.0,86745.0,0.0115418]
[1763666490231,0.00219803,86751.0,86745.0,0.0115418]
[1763666490427,0.00219803,86751.0,86741.0,0.0115423]
[1763666490639,0.00219803,86751.0,86748.0,0.0115413]
[1763666491233,0.00219803,86751.0,86750.0,0.21323]
[1763666491436,0.00219803,86751.0,86737.0,0.3608]
[1763666491628,0.3608,86746.0,86745.0,0.21323]
[1763666491826,0.36299803,86746.0,86745.0,0.21323]
[1763666492037,0.06129401,86770.0,86740.0,0.25146776]
[1763666492038,0.3608,86764.0,86751.0,0.21323]
[1763666492332,0.3608,86764.0,86751.0,0.585571]
[1763666492528,0.3608,86764.0,86763.0,0.1231395]
[1763666492728,0.3608,86772.0,86767.0,0.0115388]
[1763666492934,0.36299803,86772.0,86770.0,0.1116]
[1763666493131,0.3775697,86772.0,86759.0,0.3608]
[1763666493641,0.36299803,86772.0,86759.0,0.3608]
[1763666493827,0.36299803,86772.0,86767.0,0.0115389]
[1763666494033,0.36299803,86772.0,86762.0,0.0115395]
[1763666494445,0.36299803,86772.0,86760.0,0.0115398]
[1763666494635,0.36299803,86772.0,86759.0,0.3608]
[1763666494835,0.36299803,86772.0,86762.0,0.0115395]
[1763666495037,0.36299803,86772.0,86767.0,0.0115388]
[1763666495240,0.36299803,86772.0,86770.0,0.0115385]
[1763666496530,0.36299803,86772.0,86759.0,0.3608]
[1763666496729,0.00219803,86772.0,86768.0,0.0115388]
[1763666497038,0.3608,86770.0,86760.0,0.001]
[1763666497342,0.00219803,86761.0,86758.0,0.01154]
[1763666497536,0.00219803,86761.0,86760.0,0.1116]
[1763666497736,0.00219803,86761.0,86760.0,0.22105]
[1763666498140,0.10431,86758.0,86757.0,0.00017286]
[1763666498335,0.10650803,86758.0,86757.0,0.00017286]
[1763666498942,0.3608,86778.0,86777.0,0.10945]
[1763666499146,0.00219803,86778.0,86777.0,0.22105]
[1763666499345,0.3608,86787.0,86771.0,0.3608]
[1763666499346,0.3608,86787.0,86784.0,0.0115366]
[1763666499646,0.09216933,86788.0,86787.0,0.2325863]
[1763666499837,0.40175755,86806.0,86786.0,0.3608]
[1763666500034,0.00219803,86804.0,86786.0,0.3608]
[1763666500232,0.3608,86798.0,86786.0,0.3608]
[1763666500533,0.00219803,86797.0,86786.0,0.3608]
[1763666500737,0.00219803,86797.0,86792.0,0.0115356]
[1763666500936,0.00219803,86797.0,86786.0,0.3608]
[1763666501239,0.00219803,86797.0,86795.0,0.0115351]
[1763666501438,0.05892,86814.0,86805.0,0.1116]
[1763666501439,0.3608,86806.0,86805.0,0.1116]
[1763666501746,0.00219803,86806.0,86801.0,0.3608]
[1763666501932,0.00219803,86806.0,86805.0,0.2325839]
[1763666502338,0.01478399,86815.0,86812.0,0.0115328]
[1763666502538,0.00219803,86813.0,86812.0,0.2325828]
[1763666502932,0.00219803,86813.0,86812.0,0.22105]
[1763666503138,0.00219803,86813.0,86812.0,0.1116]
[1763666503844,0.00219803,86813.0,86803.0,0.37556186]
[1763666504148,0.00219803,86813.0,86812.0,0.1231329]
[1763666504339,0.00219803,86813.0,86812.0,0.2335829]
[1763666504539,0.00219803,86813.0,86812.0,0.22205]
[1763666504847,0.00219803,86813.0,86812.0,0.22105]
[1763666505233,0.00219803,86813.0,86812.0,0.1116]
[1763666505437,0.00219803,86813.0,86804.0,0.011534]
[1763666505742,0.00219803,86813.0,86803.0,0.36402776]
[1763666505743,0.04095755,86826.0,86825.0,0.03442]
[1763666505946,0.3608,86839.0,86829.0,0.03442]
[1763666506143,0.20908,86831.0,86830.0,0.00219803]
[1763666506343,0.57061267,86831.0,86817.0,0.00017286]
[1763666506655,0.20908,86818.0,86817.0,0.00237089]
[1763666506951,0.20981267,86818.0,86803.0,0.3608]
[1763666507152,0.20908,86807.0,86806.0,0.01373173]
[1763666507353,0.00073267,86807.0,86806.0,0.04815173]
[1763666508037,0.06706,86819.0,86806.0,0.00219803]
[1763666508238,0.3608,86817.0,86806.0,0.00319803]
[1763666508438,0.00073267,86807.0,86806.0,0.00319803]
[1763666508846,0.20981267,86807.0,86806.0,0.00319803]
[1763666509048,0.57061267,86807.0,86806.0,0.001]
[1763666509242,0.20908,86799.0,86798.0,0.00017275]
[1763666509448,0.20981267,86799.0,86798.0,0.00017275]
[1763666509747,0.30245002,86799.0,86798.0,0.00017275]
[1763666509952,0.30245002,86799.0,86760.0,0.3608]
[1763666509953,0.20908,86781.0,86760.0,0.3608]
[1763666510152,0.06706,86785.0,86760.0,0.3608]
[1763666510153,0.3608,86774.0,86764.0,0.00219803]
[1763666510351,0.00073267,86765.0,86764.0,0.23478733]
[1763666510550,0.42786,86785.0,86780.0,0.0115371]
[1763666510745,0.00073267,86784.0,86782.0,0.0115369]
[1763666510952,0.00073267,86784.0,86783.0,0.00219803]
[1763666511846,0.00073267,86784.0,86783.0,0.00219803]
[1763666512048,0.20908,86775.0,86774.0,0.00017287]
[1763666512349,0.57061267,86775.0,86774.0,0.00017287]
[1763666512655,0.00073267,86775.0,86774.0,0.2234209]
[1763666512849,0.06129401,86797.0,86774.0,0.4226709]
[1763666513052,0.3608,86822.0,86796.0,0.3608]
[1763666513362,0.20908,86815.0,86806.0,0.3608]
[1763666513658,0.20908,86815.0,86807.0,0.00219803]
[1763666513853,0.10431,86808.0,86807.0,0.00219803]
[1763666514259,0.20908,86808.0,86807.0,0.01373163]
[1763666514461,0.20908,86808.0,86807.0,0.00219803]
[1763666515466,0.20908,86808.0,86807.0,0.01373163]
[1763666515849,0.21008,86808.0,86807.0,0.00219803]
[1763666516258,0.20908,86803.0,86802.0,0.36097287]
[1763666516766,0.20908,86794.0,86793.0,0.3608]
[1763666516959,0.20908,86794.0,86793.0,0.36299803]
[1763666517952,0.20908,86794.0,86793.0,0.00219803]
[1763666518260,0.20908,86794.0,86760.0,0.5103906]
[1763666518261,0.06706,86778.0,86768.0,0.3608]
[1763666518462,0.20908,86770.0,86769.0,0.00219803]
[1763666518762,0.42786,86778.0,86761.0,0.3608]
[1763666518763,0.20908,86762.0,86761.0,0.3608]
[1763666518948,0.20908,86762.0,86761.0,0.00219803]
[1763666519353,0.22415388,86762.0,86761.0,0.00219803]
[1763666520056,0.22415388,86762.0,86761.0,0.01373773]
[1763666520253,0.00017287,86770.0,86769.0,0.0115387]
[1763666520450,0.00017287,86770.0,86769.0,0.37453673]
[1763666521659,0.42786,86796.0,86770.0,0.0115385]
[1763666521862,0.10431,86787.0,86786.0,0.1495906]
[1763666522166,0.20908,86787.0,86786.0,0.00219803]
[1763666522563,0.22155,86777.0,86776.0,0.3608]
[1763666522766,0.22155,86768.0,86767.0,0.3608]
[1763666522958,0.22155,86768.0,86767.0,0.36299803]
[1763666523155,0.22155,86768.0,86767.0,0.00219803]
[1763666523355,0.1184,86760.0,86759.0,0.36097287]
[1763666523557,0.1184,86760.0,86759.0,0.3631709]
[1763666523764,0.3608,86770.0,86759.0,0.3631709]
[1763666523955,0.00017287,86776.0,86775.0,0.22824]
[1763666524155,0.3608,86798.0,86775.0,0.36299803]
[1763666524353,0.3608,86798.0,86780.0,0.1495906]
[1763666524566,0.3608,86790.0,86781.0,0.00219803]
[1763666524770,0.3608,86799.0,86782.0,0.3723369]
[1763666524962,0.3608,86806.0,86783.0,0.00219803]
[1763666525160,0.3608,86799.0,86786.0,0.00017287]
[1763666525362,0.1184,86788.0,86787.0,0.00219803]
[1763666525566,0.00017278,86803.0,86800.0,0.0115345]
[1763666525763,0.11857278,86803.0,86802.0,0.00219803]
[1763666526264,0.00017278,86803.0,86802.0,0.00219803]
[1763666526761,0.3608,86816.0,86802.0,0.23043803]
[1763666526959,0.08242668,86843.0,86812.0,0.3608]
[1763666526960,0.06706,86832.0,86812.0,0.3608]
[1763666527155,0.3608,86835.0,86820.0,0.5103906]
[1763666527365,0.3608,86835.0,86834.0,0.00219803]
[1763666527662,0.58235,86835.0,86834.0,0.00219803]
[1763666528354,0.58235,86835.0,86826.0,0.00017277]
[1763666528571,0.22155,86828.0,86826.0,0.00017277]
[1763666528864,0.22155,86827.0,86826.0,0.00017277]
[1763666529254,0.50315,86827.0,86798.0,0.03099766]
[1763666529456,0.3608,86809.0,86798.0,0.00219803]
[1763666529762,0.3608,86810.0,86803.0,0.3608]
[1763666529963,0.3608,86810.0,86804.0,0.00219803]
[1763666530158,0.22155,86805.0,86804.0,0.00219803]
[1763666530464,0.07381,86814.0,86805.0,0.0115339]
[1763666530769,0.29536,86814.0,86813.0,0.00219803]
[1763666530958,0.00017243,86816.0,86815.0,0.11845]
[1763666531157,0.22172243,86816.0,86815.0,0.00219803]
[1763666531363,0.22172243,86816.0,86804.0,0.1495906]
[1763666531364,0.22155,86805.0,86804.0,0.1495906]
[1763666531560,0.22155,86805.0,86804.0,0.00219803]
[1763666532065,0.00017243,86816.0,86804.0,0.00219803]
[1763666532267,0.07481,86814.0,86806.0,0.1495906]
[1763666532459,0.22155,86801.0,86800.0,0.1495906]
[1763666532668,0.22155,86799.0,86798.0,0.00017277]
[1763666532871,0.3608,86812.0,86804.0,0.001]
[1763666533061,0.58235,86805.0,86804.0,0.001]
[1763666533668,0.22155,86805.0,86804.0,0.00319803]
[1763666533970,0.001,86812.0,86804.0,0.00319803]
[1763666534271,0.22155,86805.0,86804.0,0.00319803]
[1763666534475,0.1184,86805.0,86804.0,0.37453203]
[1763666534865,0.1184,86805.0,86804.0,0.00219803]
[1763666534866,0.22155,86805.0,86804.0,0.00219803]
[1763666535062,0.22155,86805.0,86804.0,0.00319803]
[1763666535261,0.001,86812.0,86810.0,0.0115332]
[1763666535470,0.1184,86813.0,86812.0,0.0115329]
[1763666535668,0.22155,86813.0,86812.0,0.00219803]
[1763666535872,0.22155,86805.0,86804.0,0.001]
[1763666536259,0.3608,86806.0,86804.0,0.00319803]
[1763666536465,0.22155,86805.0,86804.0,0.00319803]
[1763666536768,0.3608,86806.0,86804.0,0.00319803]
[1763666536959,0.00017243,86816.0,86810.0,0.0115331]
[1763666537164,0.00017243,86816.0,86815.0,0.00219803]
[1763666537370,0.00017243,86816.0,86815.0,0.01373053]
[1763666537760,0.00017243,86816.0,86813.0,0.3608]
[1763666537761,0.22172243,86816.0,86800.0,0.1495906]
[1763666537962,0.00017243,86816.0,86806.0,0.00219803]
[1763666538566,0.00017243,86816.0,86807.0,0.0115336]
[1763666538774,0.00017243,86816.0,86811.0,0.3608]
[1763666539070,0.22172243,86816.0,86815.0,0.00219803]
[1763666539367,0.22272243,86816.0,86801.0,0.3608]
[1763666539576,0.3608,86812.0,86803.0,0.0115341]
[1763666539767,0.22155,86805.0,86804.0,0.00219803]
[1763666540470,0.00117243,86816.0,86814.0,0.0115325]
[1763666540673,0.00017243,86816.0,86815.0,0.00219803]
[1763666542177,0.00017243,86816.0,86815.0,0.23043803]
[1763666542477,0.00117243,86816.0,86815.0,0.12064803]
[1763666542772,0.29653243,86816.0,86815.0,0.00219803]
[1763666542973,0.22272243,86816.0,86815.0,0.00219803]
[1763666543270,0.29653243,86816.0,86815.0,0.00219803]
[1763666543465,0.00117243,86816.0,86815.0,0.23043803]
[1763666544274,0.00117243,86816.0,86815.0,0.00219803]
[1763666544275,0.29653243,86816.0,86815.0,0.00219803]
[1763666544477,0.29653243,86816.0,86815.0,0.00209803]
[1763666545477,0.00147242,86816.0,86815.0,0.12044803]
[1763666545679,0.22302242,86816.0,86815.0,0.00199803]
[1763666546064,0.22202242,86816.0,86815.0,0.00199803]
[1763666546265,0.22302242,86816.0,86815.0,0.01353053]
[1763666546768,0.00157243,86816.0,86815.0,0.24167053]
[1763666547170,0.00157243,86816.0,86815.0,0.24157053]
[1763666547364,0.00157243,86816.0,86815.0,0.13178053]
[1763666547677,0.00167243,86816.0,86815.0,0.24157053]
[1763666547869,0.00167243,86816.0,86815.0,0.24147053]
[1763666548272,0.00117243,86816.0,86815.0,0.24147053]
[1763666548778,0.00117243,86816.0,86815.0,0.00169803]
[1763666548779,0.22332242,86816.0,86815.0,0.00169803]
[1763666549168,0.29536,86805.0,86804.0,0.3608]
[1763666549473,0.29595999,86805.0,86804.0,0.00219803]
[1763666550676,0.29595999,86805.0,86804.0,0.00319803]
[1763666551177,0.29595999,86805.0,86804.0,0.00219803]
[1763666551372,0.29695999,86805.0,86804.0,0.00319803]
[1763666551767,0.23629,86797.0,86796.0,0.00017277]
[1763666551971,0.23688999,86797.0,86796.0,0.00017277]
[1763666552372,0.23688999,86797.0,86796.0,0.0023708]
[1763666552674,0.00059999,86797.0,86796.0,0.1180908]
[1763666552876,0.00059999,86797.0,86796.0,0.2340008]
[1763666553078,0.07381,86805.0,86804.0,0.011534]
[1763666553265,0.07381,86805.0,86804.0,0.36299803]
[1763666553266,0.11980999,86805.0,86804.0,0.36299803]
[1763666553472,0.11980999,86805.0,86804.0,0.00219803]
[1763666553473,0.31144999,86805.0,86804.0,0.00219803]
[1763666553671,0.31144999,86805.0,86796.0,0.00017277]
[1763666553672,0.2382,86797.0,86796.0,0.00017277]
[1763666553973,0.23879999,86797.0,86796.0,0.0023708]
[1763666554469,0.23879999,86797.0,86796.0,0.00017277]
[1763666554875,0.23979999,86797.0,86796.0,0.00017277]
[1763666555175,0.00159999,86797.0,86796.0,0.2339008]
[1763666555573,0.001,86797.0,86796.0,0.26406038]
[1763666555782,0.06183099,86814.0,86813.0,0.2431628]
[1763666555981,0.07381,86820.0,86813.0,0.2431628]
[1763666555982,0.06183099,86821.0,86815.0,0.23382803]
[1763666556183,0.00077242,86816.0,86815.0,0.23382803]
[1763666556482,0.00077242,86816.0,86815.0,0.23372803]
[1763666556679,0.23897242,86816.0,86815.0,0.00219803]
[1763666557181,0.2382,86811.0,86802.0,0.3608]
[1763666557372,0.11921,86806.0,86805.0,0.0114339]
[1763666557572,0.23879999,86806.0,86805.0,0.00219803]
[1763666557976,0.23879999,86806.0,86805.0,0.00209803]
[1763666558378,0.2382,86797.0,86788.0,0.03099766]
[1763666558591,0.2389,86797.0,86796.0,0.032441]
[1763666559682,0.11991,86797.0,86796.0,0.032441]
[1763666559883,0.2389,86797.0,86796.0,0.0022708]
[1763666560883,0.2399,86797.0,86796.0,0.0022708]
[1763666561479,0.2389,86797.0,86796.0,0.0022708]
[1763666561674,0.2399,86797.0,86796.0,0.0022708]
[1763666561882,0.0017,86797.0,86796.0,0.2339008]
[1763666562083,0.12091,86797.0,86796.0,0.0032708]
[1763666562284,0.2399,86797.0,86796.0,0.0032708]
[1763666562980,0.3608,86806.0,86805.0,0.23163]
[1763666563189,0.00017243,86816.0,86808.0,0.23163]
[1763666563382,0.00017243,86816.0,86805.0,0.39306064]
[1763666563383,0.2382,86810.0,86809.0,0.0322607]
[1763666563584,0.2389,86810.0,86809.0,0.0322607]
[1763666564185,0.2382,86797.0,86795.0,0.03099766]
[1763666564384,0.2382,86773.0,86772.0,0.03107426]
[1763666564584,0.2382,86773.0,86769.0,0.09278016]
[1763666564585,0.2382,86770.0,86769.0,0.09278016]
[1763666564890,0.01897,86771.0,86770.0,0.00999999]
[1763666565086,0.03794,86771.0,86770.0,0.00219803]
[1763666566297,0.01422222,86771.0,86770.0,0.11791803]
[1763666566486,0.00017287,86779.0,86770.0,0.11791803]
[1763666566487,0.00017287,86779.0,86770.0,0.12791802]
[1763666566685,0.03811287,86779.0,86778.0,0.3608]
[1763666566885,0.03811287,86779.0,86778.0,0.36299803]
[1763666567403,0.05249401,86779.0,86778.0,0.36299803]
[1763666567889,0.01455401,86779.0,86778.0,0.36299803]
[1763666568191,0.05249401,86779.0,86778.0,0.36299803]
[1763666568509,0.05349401,86779.0,86778.0,0.36299803]
[1763666569394,0.03452401,86779.0,86778.0,0.36299803]
[1763666569698,0.01555401,86779.0,86778.0,0.59462803]
[1763666569990,0.3608,86811.0,86778.0,0.36299803]
[1763666570190,0.1458414,86796.0,86795.0,0.3608]
[1763666570390,0.1648114,86796.0,86795.0,0.36299803]
[1763666571192,0.1648114,86796.0,86795.0,0.59462803]
[1763666571193,0.0140314,86796.0,86795.0,0.59462803]
[1763666571497,0.002,86796.0,86795.0,0.59462803]
[1763666571691,0.01650815,86796.0,86795.0,0.59462803]
[1763666571990,0.002,86796.0,86795.0,0.59462803]
[1763666572291,0.00017287,86804.0,86802.0,0.0115342]
[1763666572493,0.00017287,86804.0,86803.0,0.36299803]
[1763666572691,0.01419292,86804.0,86803.0,0.36299803]
[1763666572890,0.00017287,86804.0,86803.0,0.36299803]
[1763666573094,0.01428513,86804.0,86803.0,0.60616213]
[1763666573289,0.00017287,86804.0,86803.0,0.59462803]
[1763666573884,0.0142298,86804.0,86803.0,0.59462803]
[1763666574092,0.00017287,86804.0,86803.0,0.59462803]
[1763666574492,0.01438301,86804.0,86803.0,0.59462803]
[1763666575397,0.00017287,86804.0,86803.0,0.59462803]
[1763666575899,0.01458325,86804.0,86803.0,0.59462803]
[1763666576898,0.00017287,86804.0,86803.0,0.60616213]
[1763666577101,0.3608,86838.0,86810.0,0.02153319]
[1763666577288,0.03794,86825.0,86824.0,0.3608]
[1763666577493,0.03794,86825.0,86824.0,0.36299803]
[1763666578191,0.03794,86825.0,86824.0,0.3608]
[1763666578695,0.03794,86817.0,86816.0,0.00017276]
[1763666578998,0.12054742,86817.0,86816.0,0.00017276]
[1763666579197,0.03794,86817.0,86816.0,0.00017276]
[1763666579395,0.12056055,86817.0,86816.0,0.00237079]
[1763666579793,0.03794,86817.0,86816.0,0.36317079]
[1763666580799,0.01897,86817.0,86816.0,0.36317079]
[1763666580994,0.001,86825.0,86824.0,0.11572]
[1763666581194,0.001,86825.0,86824.0,0.47871803]
[1763666581398,0.001,86825.0,86824.0,0.59462803]
[1763666582399,0.01450683,86826.0,86824.0,0.59462803]
[1763666582601,0.17916,86825.0,86824.0,0.36299803]
[1763666582996,0.01424865,86826.0,86824.0,0.36299803]
[1763666583203,0.00017222,86833.0,86825.0,0.18217]
[1763666583405,0.17933222,86833.0,86832.0,0.36299803]
[1763666583593,0.19362625,86833.0,86832.0,0.36299803]
[1763666583795,0.01446625,86833.0,86832.0,0.66380803]
[1763666584705,0.0763884,86833.0,86832.0,0.66380803]
[1763666584903,0.2555484,86833.0,86832.0,0.36299803]
[1763666585100,0.31038625,86833.0,86832.0,0.36299803]
[1763666585295,0.01646625,86833.0,86832.0,0.66380803]
[1763666585704,0.01746625,86833.0,86832.0,0.66380803]
[1763666586200,0.00317222,86833.0,86832.0,0.66380803]
[1763666586997,0.3608,86855.0,86832.0,0.66380803]
[1763666586998,4e-07,86846.0,86845.0,0.30081]
[1763666587199,0.3608,86855.0,86854.0,0.30081]
[1763666587409,0.3608,86855.0,86854.0,0.30300803]
[1763666587798,0.37495566,86855.0,86854.0,0.30300803]
[1763666588213,0.01415566,86855.0,86854.0,0.66380803]
[1763666588405,0.08262055,86860.0,86854.0,0.66380803]
[1763666588406,0.08262055,86860.0,86859.0,0.30081]
[1763666588712,0.08262055,86869.0,86868.0,0.30081]
[1763666588903,0.08262055,86870.0,86869.0,0.30081]
[1763666589104,0.08262055,86871.0,86869.0,0.30300803]
[1763666589406,0.29392,86870.0,86869.0,0.00219803]
[1763666589798,0.30829176,86870.0,86869.0,0.00219803]
[1763666590003,0.01437176,86870.0,86869.0,0.18436803]
[1763666590200,0.08262055,86880.0,86870.0,0.00999999]
[1763666590406,0.29392,86878.0,86877.0,0.3608]
[1763666590912,0.29392,86878.0,86877.0,0.36299803]
[1763666592014,0.01605705,86880.0,86877.0,0.54516803]
[1763666592219,0.01605705,86880.0,86879.0,0.30081]
[1763666592417,0.01605705,86880.0,86879.0,0.30300803]
[1763666592806,0.01605705,86880.0,86879.0,0.00219803]
[1763666592807,0.30797705,86880.0,86879.0,0.00219803]
[1763666593010,0.29392,86878.0,86877.0,0.3608]
[1763666593310,0.29392,86878.0,86877.0,0.36299803]
[1763666593619,0.01705705,86880.0,86879.0,0.30081]
[1763666593818,0.01705705,86880.0,86879.0,0.30300803]
[1763666594021,0.29392,86878.0,86877.0,0.3608]
[1763666594319,0.29392,86878.0,86877.0,0.36299803]
[1763666594514,0.29592,86878.0,86877.0,0.36299803]
[1763666594705,0.002,86878.0,86877.0,0.66380803]
[1763666594912,0.29592,86878.0,86877.0,0.36299803]
[1763666595818,0.29392,86878.0,86877.0,0.36299803]
[1763666596021,0.002,86878.0,86877.0,0.66380803]
[1763666596221,0.002,86878.0,86877.0,1.02460803]
[1763666596411,0.003,86878.0,86877.0,1.02460803]
[1763666596718,0.003,86878.0,86864.0,0.54297]
[1763666596719,0.17916,86865.0,86864.0,0.54297]
[1763666596919,0.003,86878.0,86870.0,0.12825999]
[1763666596920,0.29692,86878.0,86870.0,0.12825999]
[1763666597220,0.003,86878.0,86873.0,0.66161]
[1763666597412,0.003,86878.0,86877.0,0.30300803]
[1763666597608,0.003,86878.0,86877.0,0.31453233]
[1763666597809,0.09178222,86901.0,86890.0,0.00999999]
[1763666598011,0.46624,86915.0,86895.0,0.66161]
[1763666598216,0.29392,86897.0,86896.0,0.00219803]
[1763666598422,0.01407114,86912.0,86896.0,0.30300803]
[1763666598618,0.17916,86897.0,86896.0,0.30300803]
[1763666598812,0.29392,86897.0,86896.0,0.00219803]
[1763666599013,0.01382883,86912.0,86900.0,0.30081]
[1763666599213,0.29392,86896.0,86895.0,0.3608]
[1763666599522,0.09193496,86901.0,86900.0,0.30081]
[1763666599722,0.17916,86901.0,86900.0,0.36299803]
[1763666600114,0.17916,86901.0,86900.0,0.54516803]
[1763666600420,0.29392,86894.0,86893.0,0.3608]
[1763666600622,0.29392,86894.0,86893.0,0.36299803]
[1763666600813,0.001,86896.0,86895.0,0.30081]
[1763666601008,0.001,86896.0,86895.0,0.30300803]
[1763666601819,0.29492,86896.0,86895.0,0.00219803]
[1763666602122,0.17916,86896.0,86895.0,0.18436803]
[1763666602311,0.002,86901.0,86900.0,0.18217]
[1763666602511,0.29592,86901.0,86900.0,0.36299803]
[1763666602718,0.29492,86901.0,86900.0,0.36299803]
[1763666602910,0.29392,86901.0,86900.0,0.00219803]
[1763666603722,0.002,86901.0,86900.0,0.66380803]
[1763666604421,0.3608,86938.0,86921.0,0.30081]
[1763666604616,0.29392,86931.0,86930.0,0.3608]
[1763666604818,0.40099842,86931.0,86930.0,0.00219803]
[1763666605729,0.30808717,86931.0,86930.0,0.00219803]
[1763666605921,0.01616717,86931.0,86930.0,0.30300803]
[1763666606220,0.01716717,86931.0,86930.0,0.30300803]
[1763666606622,0.01516717,86931.0,86930.0,0.30300803]
[1763666606821,0.01716717,86931.0,86930.0,0.30300803]
[1763666607723,0.19632717,86931.0,86930.0,0.18436803]
[1763666607927,0.01716717,86931.0,86930.0,0.30300803]
[1763666608623,0.003,86931.0,86930.0,0.30300803]
[1763666609223,0.53208791,86949.0,86948.0,0.18217]
[1763666609432,0.66089384,86949.0,86948.0,0.36299803]
[1763666609624,0.66089384,86949.0,86948.0,0.3608]
[1763666609625,0.7518886,86949.0,86948.0,0.3608]
[1763666609817,0.7518886,86949.0,86940.0,0.01017254]
[1763666609818,0.29392,86941.0,86940.0,0.00017255]
[1763666610628,0.29392,86941.0,86940.0,0.00237058]
[1763666611333,0.4579686,86949.0,86940.0,0.45029058]
[1763666611626,0.35782,86941.0,86940.0,0.00017255]
[1763666612133,0.35982,86941.0,86940.0,0.00017255]
[1763666612328,0.36163,86929.0,86928.0,0.3608]
[1763666612526,0.3608,86929.0,86905.0,0.47906]
[1763666612720,0.3608,86929.0,86906.0,0.00219803]
[1763666612921,0.3608,86919.0,86906.0,0.00219803]
[1763666613324,0.3608,86919.0,86918.0,0.1795]
[1763666613535,0.3608,86919.0,86918.0,0.00219803]
[1763666613724,0.3618,86929.0,86928.0,0.34516]
[1763666613725,0.001,86929.0,86928.0,0.34516]
[1763666613916,0.001,86929.0,86928.0,0.70815803]
[1763666614319,0.17853,86931.0,86930.0,0.00999999]
[1763666614520,0.17853,86931.0,86930.0,0.00219803]
[1763666614521,0.35832,86931.0,86930.0,0.00219803]
[1763666615124,0.35832,86929.0,86928.0,0.3608]
[1763666615434,0.35832,86923.0,86922.0,0.00017255]
[1763666615620,0.35832,86911.0,86910.0,0.3608]
[1763666615825,0.3608,86924.0,86910.0,0.81821802]
[1763666616124,0.3608,86924.0,86910.0,0.54249803]
[1763666616325,0.35832,86911.0,86910.0,0.36299803]
[1763666616926,0.00017255,86919.0,86910.0,0.29175802]
[1763666618229,0.00017255,86919.0,86910.0,0.19169802]
[1763666618433,0.35832,86911.0,86910.0,0.00219803]
[1763666618633,0.17853,86911.0,86910.0,0.00219803]
[1763666618836,0.00017255,86919.0,86910.0,0.19169802]
[1763666619035,0.00017255,86919.0,86910.0,0.18169803]
[1763666619243,0.35832,86911.0,86910.0,0.00219803]
[1763666619425,0.00017255,86919.0,86910.0,0.34735803]
[1763666619730,0.00017255,86919.0,86918.0,0.1795]
[1763666619933,0.00017255,86919.0,86918.0,0.34735803]
[1763666620735,0.00017255,86919.0,86918.0,0.35887693]
[1763666621043,0.00017255,86919.0,86918.0,0.34735803]
[1763666621736,0.00117255,86919.0,86918.0,0.34735803]
[1763666622227,0.08262055,86953.0,86930.0,0.00999999]
[1763666622428,0.8162886,86949.0,86948.0,0.00219803]
[1763666623122,0.46336069,86949.0,86948.0,0.00219803]
[1763666623323,0.35832,86941.0,86940.0,0.00017255]
[1763666623539,0.10604069,86949.0,86940.0,0.19187057]
[1763666623829,0.10604069,86949.0,86940.0,0.29193057]
[1763666624031,0.10504069,86949.0,86948.0,0.1795]
[1763666624231,0.002,86949.0,86948.0,0.18169803]
[1763666624432,0.003,86949.0,86948.0,0.18169803]
[1763666624734,0.18153,86949.0,86948.0,0.18169803]
[1763666624930,0.01851331,86949.0,86948.0,0.34735803]
[1763666625129,0.09295986,86963.0,86948.0,0.00219803]
[1763666625332,0.08262055,86975.0,86950.0,0.00999999]
[1763666625333,0.35832,86961.0,86950.0,0.00999999]
[1763666625527,0.06476,86968.0,86951.0,0.00209803]
[1763666625721,0.35832,86952.0,86951.0,0.00209803]
[1763666626231,0.10852722,86968.0,86951.0,0.34715803]